[Event "Late-Titled-Tuesday-Blitz-August-29-2023"]
[Site "Chess.com"]
[Date "2023.08.29"]
[Round "5"]
[White "effefe"]
[Black "egnfanclub"]
[Result "0-1"]
[WhiteElo "2411"]
[BlackElo "2312"]
[TimeControl "180+1"]
[EndTime "14:56:24 PDT"]
[Termination "egnfanclub won by checkmate"]

1. d4 {[%clk 0:03:00.9]} 1... d5 {[%clk 0:02:59.4]} 2. c4 {[%clk 0:03:00]} 2...
c6 {[%clk 0:02:58.9]} 3. Nc3 {[%clk 0:02:57.2]} 3... Nf6 {[%clk 0:02:59]} 4. Nf3
{[%clk 0:02:53.7]} 4... e6 {[%clk 0:02:59.3]} 5. e3 {[%clk 0:02:49.4]} 5... Nbd7
{[%clk 0:02:58.9]} 6. Qc2 {[%clk 0:02:49.4]} 6... Bd6 {[%clk 0:02:57.3]} 7. b3
{[%clk 0:02:49.4]} 7... O-O {[%clk 0:02:51.1]} 8. Be2 {[%clk 0:02:42.9]} 8... e5
{[%clk 0:02:50.9]} 9. cxd5 {[%clk 0:02:32.9]} 9... cxd5 {[%clk 0:02:50.6]} 10.
Nb5 {[%clk 0:02:29.4]} 10... Bb8 {[%clk 0:02:28.1]} 11. Ba3 {[%clk 0:02:19.3]}
11... Re8 {[%clk 0:02:09.9]} 12. Rc1 {[%clk 0:02:15.6]} 12... Qa5+ {[%clk
0:01:36.5]} 13. b4 {[%clk 0:01:47.3]} 13... Qb6 {[%clk 0:01:19.8]} 14. Nc7
{[%clk 0:01:40.8]} 14... Bxc7 {[%clk 0:01:19.5]} 15. Qxc7 {[%clk 0:01:41.7]}
15... exd4 {[%clk 0:01:14.7]} 16. Nxd4 {[%clk 0:01:27.3]} 16... Ne5 {[%clk
0:00:50.2]} 17. O-O {[%clk 0:00:59.3]} 17... Nc6 {[%clk 0:00:31.6]} 18. Qxb6
{[%clk 0:00:34]} 18... axb6 {[%clk 0:00:32.5]} 19. Nb5 {[%clk 0:00:21.5]} 19...
Re7 {[%clk 0:00:21.8]} 20. Rc2 {[%clk 0:00:14]} 20... Ne4 {[%clk 0:00:17.8]} 21.
Rfc1 {[%clk 0:00:13.8]} 21... f5 {[%clk 0:00:16.2]} 22. Bd3 {[%clk 0:00:10.6]}
22... Be6 {[%clk 0:00:16.1]} 23. f3 {[%clk 0:00:07.8]} 23... Nf6 {[%clk
0:00:15.1]} 24. Kf2 {[%clk 0:00:07.1]} 24... Nd7 {[%clk 0:00:14.3]} 25. Rc3
{[%clk 0:00:05.2]} 25... Nde5 {[%clk 0:00:14.1]} 26. Nd4 {[%clk 0:00:02.7]}
26... Nxd4 {[%clk 0:00:11.3]} 27. exd4 {[%clk 0:00:03.6]} 27... Nc4 {[%clk
0:00:10.9]} 28. Bxc4 {[%clk 0:00:03.4]} 28... dxc4 {[%clk 0:00:11.3]} 29. b5
{[%clk 0:00:03.5]} 29... Rd7 {[%clk 0:00:10.6]} 30. Rd1 {[%clk 0:00:03.1]} 30...
Kf7 {[%clk 0:00:10.4]} 31. Rd2 {[%clk 0:00:03.5]} 31... Ra5 {[%clk 0:00:08.6]}
32. Bc1 {[%clk 0:00:02]} 32... Rxb5 {[%clk 0:00:07.7]} 33. Re3 {[%clk
0:00:01.9]} 33... Rbd5 {[%clk 0:00:06.4]} 34. Rde2 {[%clk 0:00:02.2]} 34... R5d6
{[%clk 0:00:05]} 35. Bb2 {[%clk 0:00:02.8]} 35... b5 {[%clk 0:00:04.4]} 36. Bc3
{[%clk 0:00:03.3]} 36... Bd5 {[%clk 0:00:03.4]} 37. Re5 {[%clk 0:00:03.4]} 37...
g6 {[%clk 0:00:01.6]} 38. Bb4 {[%clk 0:00:03.9]} 38... Re6 {[%clk 0:00:02]} 39.
a3 {[%clk 0:00:02.7]} 39... Rxe5 {[%clk 0:00:02.2]} 40. Rxe5 {[%clk 0:00:02.8]}
40... Be6 {[%clk 0:00:03.1]} 41. Rxb5 {[%clk 0:00:02.7]} 41... Rd5 {[%clk
0:00:03.4]} 42. Rxb7+ {[%clk 0:00:03.1]} 42... Rd7 {[%clk 0:00:03.7]} 43. Rb5
{[%clk 0:00:03.1]} 43... Rd5 {[%clk 0:00:03.2]} 44. Rb6 {[%clk 0:00:03]} 44...
Rd7 {[%clk 0:00:03.8]} 45. Rc6 {[%clk 0:00:03.2]} 45... Rxd4 {[%clk 0:00:03.9]}
46. Rc7+ {[%clk 0:00:03.8]} 46... Rd7 {[%clk 0:00:03.8]} 47. Rc5 {[%clk
0:00:04.5]} 47... Ra7 {[%clk 0:00:03.8]} 48. Kg3 {[%clk 0:00:05]} 48... Rd7
{[%clk 0:00:04]} 49. Kf4 {[%clk 0:00:05.5]} 49... Bd5 {[%clk 0:00:04.4]} 50. Ke5
{[%clk 0:00:05.8]} 50... Be6 {[%clk 0:00:04.7]} 51. Rc6 {[%clk 0:00:05.8]} 51...
Rd5+ {[%clk 0:00:05]} 52. Kf4 {[%clk 0:00:05.7]} 52... Rd7 {[%clk 0:00:05.5]}
53. h3 {[%clk 0:00:05]} 53... h6 {[%clk 0:00:05.2]} 54. g4 {[%clk 0:00:04.8]}
54... g5+ {[%clk 0:00:04.4]} 55. Kg3 {[%clk 0:00:04.2]} 55... f4+ {[%clk
0:00:04.8]} 56. Kf2 {[%clk 0:00:04.8]} 56... Rd3 {[%clk 0:00:04.9]} 57. Ke2
{[%clk 0:00:05.1]} 57... Rb3 {[%clk 0:00:05]} 58. Rc7+ {[%clk 0:00:05.3]} 58...
Kf6 {[%clk 0:00:05]} 59. Rc6 {[%clk 0:00:04.9]} 59... Ke5 {[%clk 0:00:04.6]} 60.
Rc7 {[%clk 0:00:03.7]} 60... Bd5 {[%clk 0:00:04.7]} 61. Re7+ {[%clk 0:00:03.8]}
61... Kd4 {[%clk 0:00:04.5]} 62. Rd7 {[%clk 0:00:03.9]} 62... Re3+ {[%clk
0:00:03.5]} 63. Kf2 {[%clk 0:00:04]} 63... Rxf3+ {[%clk 0:00:03.8]} 64. Ke2
{[%clk 0:00:03.8]} 64... Rd3 {[%clk 0:00:04.7]} 65. Rd6 {[%clk 0:00:02.6]} 65...
Ke4 {[%clk 0:00:04.7]} 66. Rxh6 {[%clk 0:00:02.9]} 66... f3+ {[%clk 0:00:05]}
67. Kf2 {[%clk 0:00:03.1]} 67... Rb3 {[%clk 0:00:03.7]} 68. Rh7 {[%clk 0:00:03]}
68... Kd4 {[%clk 0:00:03.8]} 69. Rd7 {[%clk 0:00:02.9]} 69... Rb2+ {[%clk
0:00:04]} 70. Kg3 {[%clk 0:00:03.1]} 70... f2 {[%clk 0:00:03.5]} 71. Bc5+ {[%clk
0:00:01.2]} 71... Kxc5 {[%clk 0:00:03.4]} 72. Rc7+ {[%clk 0:00:01.9]} 72... Kd4
{[%clk 0:00:03.8]} 73. Re7 {[%clk 0:00:01.9]} 73... f1=Q {[%clk 0:00:03.9]} 74.
h4 {[%clk 0:00:02.5]} 74... Qg2# {[%clk 0:00:03.6]} 0-1

[Event "Late-Titled-Tuesday-Blitz-August-29-2023"]
[Site "Chess.com"]
[Date "2023.08.29"]
[Round "5"]
[White "JoakimVonAnd"]
[Black "Beca95"]
[Result "1/2-1/2"]
[WhiteElo "2737"]
[BlackElo "2952"]
[TimeControl "180+1"]
[EndTime "14:56:44 PDT"]
[Termination "Game drawn - insufficient material"]

1. d4 {[%clk 0:03:00.9]} 1... Nf6 {[%clk 0:02:59.1]} 2. c4 {[%clk 0:03:00.3]}
2... e6 {[%clk 0:02:59.4]} 3. Bf4 {[%clk 0:03:00.5]} 3... c5 {[%clk 0:02:58.7]}
4. d5 {[%clk 0:03:00.3]} 4... exd5 {[%clk 0:02:57.6]} 5. cxd5 {[%clk 0:03:01.2]}
5... d6 {[%clk 0:02:57.6]} 6. Nc3 {[%clk 0:03:01.3]} 6... g6 {[%clk 0:02:56]} 7.
Nf3 {[%clk 0:03:01.5]} 7... Bg7 {[%clk 0:02:55.5]} 8. h3 {[%clk 0:02:58.6]} 8...
O-O {[%clk 0:02:54.6]} 9. e3 {[%clk 0:02:59.2]} 9... Ne8 {[%clk 0:02:54.7]} 10.
Be2 {[%clk 0:02:51.6]} 10... Nd7 {[%clk 0:02:54.6]} 11. O-O {[%clk 0:02:51.6]}
11... Ne5 {[%clk 0:02:55.1]} 12. Bxe5 {[%clk 0:02:51.5]} 12... Bxe5 {[%clk
0:02:54]} 13. Nxe5 {[%clk 0:02:49.2]} 13... dxe5 {[%clk 0:02:54.9]} 14. Qb3
{[%clk 0:02:35]} 14... Nd6 {[%clk 0:02:53.3]} 15. Nb5 {[%clk 0:02:33.2]} 15...
Nxb5 {[%clk 0:01:47.9]} 16. Bxb5 {[%clk 0:02:34.1]} 16... Qd6 {[%clk 0:01:38.4]}
17. Rac1 {[%clk 0:02:27.5]} 17... a6 {[%clk 0:01:35.6]} 18. Be2 {[%clk
0:02:27.7]} 18... b6 {[%clk 0:01:34.9]} 19. a4 {[%clk 0:02:25.5]} 19... Bd7
{[%clk 0:01:34.9]} 20. Qc2 {[%clk 0:02:20.2]} 20... Rfc8 {[%clk 0:01:33.1]} 21.
b3 {[%clk 0:02:15.5]} 21... h5 {[%clk 0:01:31.7]} 22. e4 {[%clk 0:02:09.9]}
22... b5 {[%clk 0:01:16.9]} 23. axb5 {[%clk 0:02:08.6]} 23... axb5 {[%clk
0:01:17.4]} 24. Ra1 {[%clk 0:02:08.7]} 24... Rxa1 {[%clk 0:00:54.3]} 25. Rxa1
{[%clk 0:02:09.6]} 25... c4 {[%clk 0:00:54]} 26. bxc4 {[%clk 0:02:06.9]} 26...
bxc4 {[%clk 0:00:54.9]} 27. Qc3 {[%clk 0:01:46.4]} 27... f6 {[%clk 0:00:54.1]}
28. Ra7 {[%clk 0:01:40]} 28... Be8 {[%clk 0:00:51.5]} 29. Bxc4 {[%clk
0:01:17.7]} 29... Qc5 {[%clk 0:00:45.8]} 30. d6+ {[%clk 0:01:16.7]} 30... Qxc4
{[%clk 0:00:45.6]} 31. Qxc4+ {[%clk 0:01:07.8]} 31... Rxc4 {[%clk 0:00:45.8]}
32. d7 {[%clk 0:01:08.3]} 32... Bxd7 {[%clk 0:00:45.5]} 33. Rxd7 {[%clk
0:01:09]} 33... Rxe4 {[%clk 0:00:45.2]} 34. g3 {[%clk 0:01:06.1]} 34... Rd4
{[%clk 0:00:34.3]} 35. Ra7 {[%clk 0:01:05.5]} 35... Kf8 {[%clk 0:00:31.1]} 36.
h4 {[%clk 0:01:05]} 36... Rd6 {[%clk 0:00:31.1]} 37. Kg2 {[%clk 0:01:05.2]}
37... Re6 {[%clk 0:00:31.6]} 38. Rb7 {[%clk 0:01:05.4]} 38... Re7 {[%clk
0:00:32]} 39. Rb6 {[%clk 0:01:06.1]} 39... Kf7 {[%clk 0:00:32.3]} 40. Ra6 {[%clk
0:01:06.8]} 40... Kg7 {[%clk 0:00:31.7]} 41. Rb6 {[%clk 0:01:07.1]} 41... Rd7
{[%clk 0:00:31.7]} 42. Ra6 {[%clk 0:01:07.6]} 42... Kf7 {[%clk 0:00:31.8]} 43.
Rb6 {[%clk 0:01:08]} 43... Ke7 {[%clk 0:00:32.3]} 44. Ra6 {[%clk 0:01:08.4]}
44... Rd6 {[%clk 0:00:32.8]} 45. Ra7+ {[%clk 0:01:09]} 45... Ke6 {[%clk
0:00:33.1]} 46. Rg7 {[%clk 0:01:06.7]} 46... Kf5 {[%clk 0:00:33.4]} 47. Ra7
{[%clk 0:01:07.4]} 47... Rd2 {[%clk 0:00:33.2]} 48. Ra4 {[%clk 0:01:05.4]} 48...
Rc2 {[%clk 0:00:33.3]} 49. Ra5 {[%clk 0:01:05.6]} 49... Rb2 {[%clk 0:00:33.2]}
50. Ra4 {[%clk 0:01:06]} 50... Rd2 {[%clk 0:00:32.6]} 51. Ra5 {[%clk 0:01:04.4]}
51... Rd4 {[%clk 0:00:31.5]} 52. Rb5 {[%clk 0:01:04.9]} 52... Rd6 {[%clk
0:00:29.1]} 53. Ra5 {[%clk 0:01:05.1]} 53... Ke6 {[%clk 0:00:27.7]} 54. Rb5
{[%clk 0:01:05.3]} 54... Rd5 {[%clk 0:00:25.1]} 55. Rb6+ {[%clk 0:01:05.5]}
55... Kf5 {[%clk 0:00:25.6]} 56. Rb4 {[%clk 0:01:05.4]} 56... e4 {[%clk
0:00:25.9]} 57. Rb7 {[%clk 0:01:01.8]} 57... Kg4 {[%clk 0:00:24.6]} 58. Rg7
{[%clk 0:00:59.1]} 58... g5 {[%clk 0:00:23]} 59. hxg5 {[%clk 0:00:58.5]} 59...
Rxg5 {[%clk 0:00:23.1]} 60. Re7 {[%clk 0:00:58.2]} 60... f5 {[%clk 0:00:22.4]}
61. Rh7 {[%clk 0:00:44.9]} 61... Rg6 {[%clk 0:00:21.6]} 62. Ra7 {[%clk
0:00:41.2]} 62... h4 {[%clk 0:00:21.1]} 63. gxh4 {[%clk 0:00:38.2]} 63... Kxh4+
{[%clk 0:00:20.5]} 64. Kf1 {[%clk 0:00:38.6]} 64... Kg4 {[%clk 0:00:20.8]} 65.
Ra3 {[%clk 0:00:37.4]} 65... Kf4 {[%clk 0:00:21]} 66. Rb3 {[%clk 0:00:35.3]}
66... Rd6 {[%clk 0:00:20.9]} 67. Ke2 {[%clk 0:00:27.9]} 67... Ra6 {[%clk
0:00:20.8]} 68. Rb5 {[%clk 0:00:24.6]} 68... Ra2+ {[%clk 0:00:20]} 69. Kf1
{[%clk 0:00:25.1]} 69... Rc2 {[%clk 0:00:19.9]} 70. Ke1 {[%clk 0:00:24.8]} 70...
Kg4 {[%clk 0:00:19.7]} 71. Ra5 {[%clk 0:00:18.7]} 71... Rb2 {[%clk 0:00:19.5]}
72. Rc5 {[%clk 0:00:18.2]} 72... f4 {[%clk 0:00:19.5]} 73. Rc3 {[%clk 0:00:18]}
73... f3 {[%clk 0:00:14.7]} 74. Rc8 {[%clk 0:00:16.6]} 74... Rb1+ {[%clk
0:00:13.3]} 75. Kd2 {[%clk 0:00:16.1]} 75... Rf1 {[%clk 0:00:13.8]} 76. Rg8+
{[%clk 0:00:15.4]} 76... Kf5 {[%clk 0:00:13.8]} 77. Rf8+ {[%clk 0:00:15.6]}
77... Kg6 {[%clk 0:00:13.9]} 78. Ke3 {[%clk 0:00:12.1]} 78... Re1+ {[%clk
0:00:13.8]} 79. Kf4 {[%clk 0:00:12.7]} 79... Re2 {[%clk 0:00:13.6]} 80. Re8
{[%clk 0:00:13.1]} 80... Rxf2 {[%clk 0:00:10.5]} 81. Rxe4 {[%clk 0:00:13.3]}
81... Rf1 {[%clk 0:00:09.5]} 82. Re3 {[%clk 0:00:12.4]} 82... f2 {[%clk
0:00:08.7]} 83. Kf3 {[%clk 0:00:12.9]} 83... Re1 {[%clk 0:00:08.9]} 84. Kxf2
{[%clk 0:00:12.1]} 84... Rxe3 {[%clk 0:00:09.3]} 85. Kxe3 {[%clk 0:00:13]}
1/2-1/2

[Event "Late-Titled-Tuesday-Blitz-August-29-2023"]
[Site "Chess.com"]
[Date "2023.08.29"]
[Round "5"]
[White "Ramosha"]
[Black "TigrVShlyape"]
[Result "1-0"]
[WhiteElo "2631"]
[BlackElo "2864"]
[TimeControl "180+1"]
[EndTime "14:57:02 PDT"]
[Termination "Ramosha won on time"]

1. e4 {[%clk 0:02:57.9]} 1... c5 {[%clk 0:02:58.3]} 2. Nf3 {[%clk 0:02:56.6]}
2... e6 {[%clk 0:02:57.8]} 3. d3 {[%clk 0:02:56.6]} 3... Nc6 {[%clk 0:02:47.2]}
4. Nbd2 {[%clk 0:02:55.3]} 4... g6 {[%clk 0:02:46.4]} 5. g3 {[%clk 0:02:55.6]}
5... Bg7 {[%clk 0:02:46.2]} 6. Bg2 {[%clk 0:02:56.1]} 6... Nge7 {[%clk
0:02:46.3]} 7. O-O {[%clk 0:02:56.7]} 7... O-O {[%clk 0:02:44.7]} 8. Re1 {[%clk
0:02:57.2]} 8... d6 {[%clk 0:02:44.3]} 9. c3 {[%clk 0:02:57]} 9... b5 {[%clk
0:02:42.9]} 10. a4 {[%clk 0:02:55.4]} 10... b4 {[%clk 0:02:42.7]} 11. Qc2 {[%clk
0:02:55.5]} 11... Rb8 {[%clk 0:02:37.7]} 12. Nc4 {[%clk 0:02:55]} 12... d5
{[%clk 0:02:32.9]} 13. exd5 {[%clk 0:02:53.9]} 13... Nxd5 {[%clk 0:02:32.2]} 14.
Nfe5 {[%clk 0:02:52.1]} 14... Nxe5 {[%clk 0:02:30.7]} 15. Nxe5 {[%clk 0:02:53]}
15... Bb7 {[%clk 0:02:29.9]} 16. Bd2 {[%clk 0:02:47.1]} 16... Qc7 {[%clk
0:02:20.7]} 17. Nc4 {[%clk 0:02:44.8]} 17... Rbd8 {[%clk 0:02:11.7]} 18. Re2
{[%clk 0:02:28]} 18... bxc3 {[%clk 0:02:08.4]} 19. bxc3 {[%clk 0:02:27.7]} 19...
Ne7 {[%clk 0:01:49.1]} 20. Bf4 {[%clk 0:02:22]} 20... Qd7 {[%clk 0:01:48.4]} 21.
Bxb7 {[%clk 0:02:14.3]} 21... Qxb7 {[%clk 0:01:47.4]} 22. Bd6 {[%clk 0:02:12.4]}
22... Rc8 {[%clk 0:01:37.5]} 23. Qb2 {[%clk 0:01:56.2]} 23... Qxb2 {[%clk
0:01:30.9]} 24. Rxb2 {[%clk 0:01:57.1]} 24... Rfe8 {[%clk 0:01:28.7]} 25. Rb7
{[%clk 0:01:55.3]} 25... Nd5 {[%clk 0:01:26.1]} 26. Rxa7 {[%clk 0:01:50.5]}
26... Bxc3 {[%clk 0:01:22.7]} 27. Rb1 {[%clk 0:01:47.2]} 27... Bb4 {[%clk
0:01:15.3]} 28. a5 {[%clk 0:01:39.5]} 28... Ra8 {[%clk 0:01:14.7]} 29. Rxa8
{[%clk 0:01:39.7]} 29... Rxa8 {[%clk 0:01:14.7]} 30. Ra1 {[%clk 0:01:40.2]}
30... Ra6 {[%clk 0:01:14.5]} 31. Be5 {[%clk 0:01:35.8]} 31... f6 {[%clk
0:01:13.2]} 32. Bb2 {[%clk 0:01:35]} 32... Kf7 {[%clk 0:01:12.4]} 33. f4 {[%clk
0:01:32.6]} 33... Ke7 {[%clk 0:01:10]} 34. Kg2 {[%clk 0:01:30.1]} 34... Kd7
{[%clk 0:01:10.1]} 35. Kf3 {[%clk 0:01:29]} 35... Kc6 {[%clk 0:01:09.9]} 36. Ba3
{[%clk 0:01:19.4]} 36... Bc3 {[%clk 0:01:06.8]} 37. Rc1 {[%clk 0:01:14.9]} 37...
Bxa5 {[%clk 0:00:57.9]} 38. Bxc5 {[%clk 0:01:12.2]} 38... Bc3 {[%clk 0:00:51.9]}
39. Bf2 {[%clk 0:01:08.3]} 39... Kd7 {[%clk 0:00:49.1]} 40. Ne3 {[%clk 0:01:07]}
40... Nxe3 {[%clk 0:00:47.2]} 41. Bxe3 {[%clk 0:01:07.9]} 41... Bb4 {[%clk
0:00:41.5]} 42. Rb1 {[%clk 0:01:05.9]} 42... Bd6 {[%clk 0:00:39.8]} 43. h3
{[%clk 0:01:02.5]} 43... Bc7 {[%clk 0:00:38.6]} 44. Rb2 {[%clk 0:01:00.8]} 44...
Ra3 {[%clk 0:00:37.3]} 45. Ke2 {[%clk 0:01:01]} 45... h5 {[%clk 0:00:35.5]} 46.
g4 {[%clk 0:00:59]} 46... hxg4 {[%clk 0:00:33.5]} 47. hxg4 {[%clk 0:00:59.8]}
47... Ra1 {[%clk 0:00:31.2]} 48. Kf3 {[%clk 0:00:58.2]} 48... Rd1 {[%clk
0:00:30.5]} 49. Ke2 {[%clk 0:00:56.3]} 49... Rh1 {[%clk 0:00:30.3]} 50. Rb4
{[%clk 0:00:49.9]} 50... Rh3 {[%clk 0:00:26.6]} 51. Ra4 {[%clk 0:00:46.5]} 51...
Rg3 {[%clk 0:00:24.8]} 52. g5 {[%clk 0:00:45.5]} 52... fxg5 {[%clk 0:00:16.7]}
53. fxg5 {[%clk 0:00:46.4]} 53... Bd8 {[%clk 0:00:15.3]} 54. Ra7+ {[%clk
0:00:44.2]} 54... Ke8 {[%clk 0:00:13.3]} 55. Ra8 {[%clk 0:00:41.2]} 55... Kd7
{[%clk 0:00:13.2]} 56. Ra7+ {[%clk 0:00:41.3]} 56... Ke8 {[%clk 0:00:13.4]} 57.
Bf4 {[%clk 0:00:36.8]} 57... Rg1 {[%clk 0:00:11.4]} 58. Be3 {[%clk 0:00:24]}
58... Rg4 {[%clk 0:00:10.3]} 59. Kf3 {[%clk 0:00:23.4]} 59... Rh4 {[%clk
0:00:10.5]} 60. Rg7 {[%clk 0:00:23.3]} 60... Rh3+ {[%clk 0:00:10.6]} 61. Ke2
{[%clk 0:00:22.7]} 61... Rh2+ {[%clk 0:00:10.8]} 62. Kf1 {[%clk 0:00:22.7]}
62... Rh3 {[%clk 0:00:11.2]} 63. Kf2 {[%clk 0:00:22.2]} 63... Rh2+ {[%clk
0:00:10.5]} 64. Kg3 {[%clk 0:00:22.5]} 64... Rh5 {[%clk 0:00:09.7]} 65. Rxg6
{[%clk 0:00:22.4]} 65... Kf7 {[%clk 0:00:09.7]} 66. Rh6 {[%clk 0:00:22.8]} 66...
Rxh6 {[%clk 0:00:09.7]} 67. gxh6 {[%clk 0:00:23.6]} 67... Kg6 {[%clk 0:00:10.3]}
68. Kf3 {[%clk 0:00:23.5]} 68... Be7 {[%clk 0:00:09.3]} 69. Ke4 {[%clk
0:00:23.9]} 69... Bd6 {[%clk 0:00:09]} 70. Bf4 {[%clk 0:00:24.1]} 70... Bb4
{[%clk 0:00:08]} 71. Ke5 {[%clk 0:00:24.2]} 71... Kf7 {[%clk 0:00:05.5]} 72. h7
{[%clk 0:00:22.5]} 72... Kg7 {[%clk 0:00:05.6]} 73. Kxe6 {[%clk 0:00:20.5]}
73... Kxh7 {[%clk 0:00:05.9]} 74. d4 {[%clk 0:00:19.7]} 74... Kg6 {[%clk
0:00:05.9]} 75. d5 {[%clk 0:00:19.7]} 75... Ba3 {[%clk 0:00:05.5]} 76. Bd6
{[%clk 0:00:19.8]} 76... Bc1 {[%clk 0:00:05.5]} 77. Be7 {[%clk 0:00:20.2]} 77...
Bf4 {[%clk 0:00:05.5]} 78. Bf6 {[%clk 0:00:20.2]} 78... Bb8 {[%clk 0:00:04.7]}
79. Be5 {[%clk 0:00:20]} 79... Ba7 {[%clk 0:00:04.2]} 80. d6 {[%clk 0:00:20.5]}
80... Bb6 {[%clk 0:00:03.7]} 81. d7 {[%clk 0:00:21]} 81... Kg5 {[%clk
0:00:03.3]} 82. Kd6 {[%clk 0:00:18.1]} 82... Kf5 {[%clk 0:00:03.5]} 83. Kc6
{[%clk 0:00:17.6]} 83... Ke6 {[%clk 0:00:03.8]} 84. Bc7 {[%clk 0:00:16.8]} 1-0

[Event "Late-Titled-Tuesday-Blitz-August-29-2023"]
[Site "Chess.com"]
[Date "2023.08.29"]
[Round "6"]
[White "kinga2008"]
[Black "HamedWafa4"]
[Result "0-1"]
[WhiteElo "2405"]
[BlackElo "2566"]
[TimeControl "180+1"]
[EndTime "15:00:07 PDT"]
[Termination "HamedWafa4 won by resignation"]

1. e4 {[%clk 0:02:49.3]} 1... e5 {[%clk 0:02:59.2]} 2. Nf3 {[%clk 0:02:28]} 2...
Nc6 {[%clk 0:02:57.3]} 3. d4 {[%clk 0:02:26.6]} 3... exd4 {[%clk 0:02:57]} 4.
Bc4 {[%clk 0:02:27.5]} 4... Nf6 {[%clk 0:02:56.4]} 5. O-O {[%clk 0:02:23.4]}
5... Nxe4 {[%clk 0:02:56.2]} 6. Re1 {[%clk 0:02:22.8]} 6... d5 {[%clk
0:02:55.9]} 7. Bxd5 {[%clk 0:02:23.7]} 7... Qxd5 {[%clk 0:02:56]} 8. Nc3 {[%clk
0:02:24.6]} 8... Qa5 {[%clk 0:02:56.7]} 9. Nxe4 {[%clk 0:02:25.5]} 9... Be6
{[%clk 0:02:57]} 10. Neg5 {[%clk 0:02:25.2]} 10... O-O-O {[%clk 0:02:57.4]} 11.
Nxe6 {[%clk 0:02:26.1]} 11... fxe6 {[%clk 0:02:57.7]} 12. Rxe6 {[%clk 0:02:27]}
12... Bd6 {[%clk 0:02:58.4]} 13. Bg5 {[%clk 0:02:27.4]} 13... Rde8 {[%clk
0:02:58.5]} 14. Qe2 {[%clk 0:02:27.8]} 14... Ne5 {[%clk 0:02:57.9]} 15. Nxd4
{[%clk 0:02:17.2]} 15... Rxe6 {[%clk 0:02:56.8]} 16. Nxe6 {[%clk 0:02:18.1]}
16... Re8 {[%clk 0:02:57.1]} 17. Nxg7 {[%clk 0:02:14.6]} 17... Nf3+ {[%clk
0:02:55.6]} 0-1

[Event "Late-Titled-Tuesday-Blitz-August-29-2023"]
[Site "Chess.com"]
[Date "2023.08.29"]
[Round "6"]
[White "FeketeBarika"]
[Black "DawidCzerw"]
[Result "0-1"]
[WhiteElo "2356"]
[BlackElo "2483"]
[TimeControl "180+1"]
[EndTime "15:00:20 PDT"]
[Termination "DawidCzerw won by resignation"]

1. Nf3 {[%clk 0:03:00.9]} 1... c5 {[%clk 0:03:00.4]} 2. c4 {[%clk 0:03:00.1]}
2... Nc6 {[%clk 0:03:00.8]} 3. Nc3 {[%clk 0:02:59.4]} 3... g6 {[%clk 0:03:01.2]}
4. d4 {[%clk 0:02:59.1]} 4... cxd4 {[%clk 0:03:02.1]} 5. Nxd4 {[%clk 0:02:59.5]}
5... Nf6 {[%clk 0:03:03]} 6. e4 {[%clk 0:02:58.6]} 6... d6 {[%clk 0:03:03.4]} 7.
Be2 {[%clk 0:02:53.2]} 7... Nxd4 {[%clk 0:03:03.3]} 8. Qxd4 {[%clk 0:02:52.8]}
8... Bg7 {[%clk 0:03:04.2]} 9. Qd1 {[%clk 0:02:52.2]} 9... O-O {[%clk
0:03:04.4]} 10. O-O {[%clk 0:02:52.6]} 10... Be6 {[%clk 0:03:04.8]} 11. b3
{[%clk 0:02:50.9]} 11... Nxe4 {[%clk 0:03:03.9]} 12. Nxe4 {[%clk 0:02:48.9]}
12... Bxa1 {[%clk 0:03:03.8]} 13. Bh6 {[%clk 0:02:49.6]} 13... Bg7 {[%clk
0:03:03.9]} 14. Bxg7 {[%clk 0:02:50.1]} 14... Kxg7 {[%clk 0:03:04.8]} 15. Qd4+
{[%clk 0:02:49.4]} 15... f6 {[%clk 0:03:04.7]} 16. Ng5 {[%clk 0:02:49]} 16...
Bg8 {[%clk 0:03:02.1]} 17. Bg4 {[%clk 0:02:48.4]} 17... e5 {[%clk 0:02:59.5]}
18. Qe4 {[%clk 0:02:44.6]} 18... fxg5 {[%clk 0:02:57.3]} 19. Qxb7+ {[%clk
0:02:45.2]} 19... Rf7 {[%clk 0:02:53.7]} 20. Qe4 {[%clk 0:02:45.5]} 20... Rb8
{[%clk 0:02:47]} 21. Rd1 {[%clk 0:02:41.9]} 21... Qb6 {[%clk 0:02:45.9]} 22. Bf3
{[%clk 0:02:41.2]} 22... Rf4 {[%clk 0:02:43.8]} 23. Qe2 {[%clk 0:02:39.7]} 23...
Be6 {[%clk 0:02:37]} 24. Kh1 {[%clk 0:02:31.6]} 24... g4 {[%clk 0:02:33.9]} 25.
Bd5 {[%clk 0:02:29.6]} 25... Bxd5 {[%clk 0:02:31.7]} 26. Rxd5 {[%clk 0:02:28.1]}
26... Qxf2 {[%clk 0:02:31.7]} 0-1

[Event "Late-Titled-Tuesday-Blitz-August-29-2023"]
[Site "Chess.com"]
[Date "2023.08.29"]
[Round "6"]
[White "HajiyevKanan"]
[Black "Akhayan"]
[Result "0-1"]
[WhiteElo "2466"]
[BlackElo "2310"]
[TimeControl "180+1"]
[EndTime "15:01:05 PDT"]
[Termination "Akhayan won by resignation"]

1. d4 {[%clk 0:03:00.9]} 1... Nf6 {[%clk 0:02:59.4]} 2. Nf3 {[%clk 0:03:01.4]}
2... g6 {[%clk 0:02:59.1]} 3. c4 {[%clk 0:03:01.9]} 3... Bg7 {[%clk 0:02:59.4]}
4. g3 {[%clk 0:03:02.8]} 4... O-O {[%clk 0:02:59]} 5. Bg2 {[%clk 0:03:03.6]}
5... c6 {[%clk 0:02:59.5]} 6. O-O {[%clk 0:03:04.5]} 6... d5 {[%clk 0:02:59.8]}
7. b3 {[%clk 0:03:05.2]} 7... a5 {[%clk 0:02:57.9]} 8. Nc3 {[%clk 0:03:04.4]}
8... Ne4 {[%clk 0:02:54.8]} 9. Bb2 {[%clk 0:03:04.3]} 9... Bf5 {[%clk
0:02:53.1]} 10. e3 {[%clk 0:03:04.3]} 10... Nd7 {[%clk 0:02:51.3]} 11. Nh4
{[%clk 0:02:46.1]} 11... Nxc3 {[%clk 0:02:49.9]} 12. Bxc3 {[%clk 0:02:47]} 12...
Be6 {[%clk 0:02:49.4]} 13. f4 {[%clk 0:02:42.8]} 13... dxc4 {[%clk 0:02:46.3]}
14. e4 {[%clk 0:02:43]} 14... Nb6 {[%clk 0:02:27.9]} 15. f5 {[%clk 0:02:26.3]}
15... gxf5 {[%clk 0:02:24.4]} 16. Nxf5 {[%clk 0:02:26.4]} 16... Bxf5 {[%clk
0:02:23.1]} 17. Rxf5 {[%clk 0:02:26.5]} 17... e6 {[%clk 0:02:17.6]} 18. Rxa5
{[%clk 0:02:22.1]} 18... Rxa5 {[%clk 0:02:14.2]} 19. Bxa5 {[%clk 0:02:22.7]}
19... Qxd4+ {[%clk 0:02:14.1]} 20. Qxd4 {[%clk 0:02:15.3]} 20... Bxd4+ {[%clk
0:02:13.8]} 21. Kf1 {[%clk 0:02:16.2]} 21... Bxa1 {[%clk 0:02:11.4]} 22. Bxb6
{[%clk 0:02:16.7]} 22... c3 {[%clk 0:02:00.3]} 23. Kf2 {[%clk 0:02:16.8]} 23...
c2 {[%clk 0:01:57.5]} 0-1